fUST/lending_fUST_20251219
["ID","MTS","AMOUNT","RATE_DAILY","PERIOD"]
[399085055,1766107839634,-1000.0,0.00053,120]
[399085057,1766107839644,-252.5,0.00053,2]
[399085059,1766107839654,-2489.3,0.0005315,120]
[399085061,1766107839664,-2489.3,0.00053424,120]
[399085063,1766107839673,-2489.3,0.00053698,120]
[399085065,1766107839683,-3000.0,0.00053888,120]
[399085067,1766107839693,-2489.3,0.00053972,120]
[399085069,1766107839703,-1000.0,0.00054,120]
[399085071,1766107839713,-999.0,0.00054,120]
[399085073,1766107839722,-2489.3,0.00054246,120]
[399085075,1766107839732,-2489.3,0.0005452,120]
[399085076,1766107839742,-152.0,0.000547,120]
[399085078,1766107839752,-820.66973605,0.00054776,2]
[399085079,1766107839761,-2489.3,0.00054794,120]
[399085081,1766107839770,-415.0,0.00054925,120]
[399085083,1766107839780,-3149.0,0.00055,120]
[399085085,1766107839790,-1000.0,0.00055,120]
[399085087,1766107839800,-999.0,0.00055,120]
[399085088,1766107839810,-2489.3,0.00055068,120]
[399085090,1766107839820,-5316.70260764,0.000553,120]
[399085092,1766107839829,-2489.3,0.00055342,120]
[399085094,1766107839839,-2489.51217297,0.00055616,120]
[399085096,1766107839848,-4302.2521858,0.00055633,2]
[399085098,1766107839858,-500.0,0.00055981,120]
[399085100,1766107839867,-1000.0,0.00056,120]
[399085102,1766107839877,-152.0,0.000564,120]
[399085104,1766107839888,-2118.69823397,0.0005643,60]
[399085106,1766107839898,-160.0,0.0005675,5]
[399085108,1766107839908,-500.0,0.00057,45]
[399085110,1766107839918,-1000.0,0.00057,120]
[399085112,1766107839928,-500.0,0.00057077,120]
[399085114,1766107839938,-114.37577679,0.00057137,120]
[399085116,1766107839948,-420.42,0.000574,30]
[399085118,1766107839958,-34971.04301148,0.0005758,120]
[399085120,1766107839967,-701.65825062,0.00057659,2]
[399085121,1766107839977,-494.77797983,0.00057659,2]
[399085123,1766107839988,-386.40428876,0.000577,120]
[399085125,1766107839998,-45395.6474424,0.000578,2]
[399085139,1766107840143,-1987.87049881,0.000578,2]
[399085141,1766107840155,-8965.26925915,0.000578,2]
[399085198,1766107842938,-4260.0,0.000578,2]
[399085202,1766107843061,-31418.17967045,0.000578,2]
[399085207,1766107847191,-496.15,0.000578,2]
[399085208,1766107847203,-284066.44657693,0.000578,2]
[399085209,1766107847214,-53121.70022993,0.000578,2]
[399085210,1766107883204,509.22516302,0.00013273,2]
[399085211,1766107883658,510.91159276,0.00013273,2]
[399085212,1766107923108,377.47208555,0.00013273,2]
[399085213,1766107926312,500.0,0.00013699,2]
[399085214,1766107926364,1000.0,0.00014247,2]
[399085215,1766107926404,456.24088008,0.00014795,2]
[399085216,1766107926472,500.0,0.00013699,2]
[399085217,1766107926520,500.83717994,0.00014247,2]
[399085218,1766107935116,507.89129918,0.00013273,2]
[399085219,1766107950807,151.6,0.0001,2]
[399085220,1766107953186,151.6,0.000102,2]
[399085224,1766107986370,500.0,0.00013699,2]
[399085225,1766107986759,500.0,0.00013699,2]
[399085226,1766107986786,500.0,0.00013273,2]
[399085227,1766107986811,1000.0,0.00014247,2]
[399085228,1766107986838,1000.0,0.00013821,2]
[399085229,1766107986863,1500.0,0.00014795,2]
[399085230,1766107986888,631.86870725,0.00014368,2]
[399085231,1766107986912,599.97193355,0.00015342,2]
[399085232,1766107986934,1400.02806645,0.00015342,2]
[399085233,1766107986960,2073.55828561,0.0001589,2]
[399085234,1766107986985,500.0,0.00013699,2]
[399085235,1766107987011,1000.0,0.00014247,2]
[399085236,1766107987037,500.0,0.00013699,2]
[399085237,1766107987063,1109.18276357,0.00014795,2]
[399085238,1766107987088,1000.0,0.00014247,2]
[399085239,1766107987116,1500.0,0.00014795,2]
[399085240,1766107987176,917.24088437,0.00015342,2]
[399085241,1766107987196,1082.75911563,0.00015342,2]
[399085242,1766107987226,2006.12465459,0.0001589,2]
[399085243,1766107987358,573.56271478,0.00013699,2]
[399085244,1766107989050,249.04765708,0.00014247,2]
[399085245,1766108028668,1920.9,0.00017995,2]
[399085246,1766108046026,150.0,9.435e-05,2]
[399085247,1766108046635,150.0,0.00010293,2]
[399085248,1766108047058,150.0,0.00011151,2]
[399085249,1766108047483,150.0,0.00012009,2]
[399085250,1766108047883,150.0,0.00012866,2]
[399085251,1766108048343,150.0,0.00013724,2]
[399085252,1766108048761,172.0,0.00014582,2]
[399085253,1766108049164,196.57,0.0001544,2]
[399085254,1766108049559,221.14,0.00016297,2]
[399085255,1766108049965,245.71,0.00017155,2]
[399085256,1766108103481,500.0,0.00013699,2]
[399085257,1766108103535,1000.0,0.00014247,2]
[399085258,1766108103583,932.19585792,0.00014795,2]
[399085259,1766108103606,567.80414208,0.00014795,2]
[399085260,1766108103638,503.57741596,0.00015342,2]
[399085261,1766108115179,150.0,0.00017323,2]
[399085262,1766108126837,500.0,0.00013273,2]
[399085263,1766108126884,1000.0,0.00013821,2]
[399085264,1766108126944,1500.0,0.00014368,2]
[399085265,1766108127016,2000.0,0.00014916,2]
[399085266,1766108177660,3778.62844196,0.00017,7]
[399085267,1766108177683,10000.01,0.00017,7]
[399085268,1766108177704,10000.01,0.00017,7]
[399085269,1766108177728,10000.01,0.00017,7]
[399085270,1766108177750,10000.01,0.00017,7]
[399085271,1766108177771,10000.01,0.00017,7]
[399085272,1766108177795,10000.01,0.00017,7]
[399085273,1766108177818,10000.01,0.00017,7]
[399085274,1766108177839,10000.01,0.00017,7]
[399085275,1766108177861,10000.01,0.00017,7]
[399085276,1766108199767,-150.53,0.00014048,2]
[399085277,1766108199799,-301.05,0.00015326,2]
[399085278,1766108199832,-451.58,0.00016603,2]
[399085279,1766108199862,-459.39484561,0.00016999,2]
[399085280,1766108199892,-500.0,0.00016999,2]
[399085281,1766108199922,-500.0,0.00016999,2]
[399085282,1766108199953,-500.0,0.00016999,2]
[399085283,1766108199982,-500.0,0.00016999,2]
[399085284,1766108200012,-500.0,0.00016999,2]
[399085285,1766108200042,-500.0,0.00016999,2]
[399085286,1766108200070,-342.76224775,0.00016999,2]
[399085287,1766108200100,-89.37581328,0.00016999,2]
[399085288,1766108200196,-410.62418672,0.00016999,2]
[399085289,1766108200226,-500.0,0.00016999,2]
[399085290,1766108200256,-500.0,0.00016999,2]
[399085291,1766108200287,-363.0764138,0.00016999,2]
[399085292,1766108200320,-500.0,0.00016999,2]
[399085293,1766108200355,-500.0,0.00016999,2]
[399085294,1766108200386,-500.0,0.00016999,2]
[399085295,1766108200416,-500.0,0.00016999,2]
[399085296,1766108200448,-500.0,0.00016999,2]
[399085297,1766108200479,-500.0,0.00016999,2]
[399085298,1766108200709,-500.0,0.00016999,2]
[399085299,1766108200740,-500.0,0.00016999,2]
[399085300,1766108200769,-289.62376698,0.00016999,2]
[399085301,1766108200799,-614.54954065,0.00016999,2]
[399085302,1766108200828,-500.0,0.00016999,2]
[399085303,1766108200855,-451.66079124,0.00016999,2]
[399085304,1766108205655,-3851.61891519,0.00017,7]
[399085305,1766108205710,-10000.01,0.00017,7]
[399085306,1766108205849,-10000.01,0.00017,7]
[399085307,1766108208150,-10000.01,0.00017,7]
[399085308,1766108208319,-10000.01,0.00017,7]
[399085309,1766108208423,-10000.01,0.00017,7]
[399085310,1766108208516,-10000.01,0.00017,7]
[399085311,1766108208621,-10000.01,0.00017,7]
[399085312,1766108208737,-10000.01,0.00017,7]
[399085313,1766108208848,-831.97178866,0.00017,7]
[399085314,1766108208879,-602.11,0.0001788,2]
[399085315,1766108210329,600.0,0.00017339,2]
[399085316,1766108223256,500.0,0.00013699,2]
[399085317,1766108223302,1000.0,0.00014247,2]
[399085318,1766108223362,1500.0,0.00014795,2]
[399085319,1766108223413,2000.0,0.00015342,2]
[399085320,1766108223473,525.30314363,0.0001589,2]
[399085331,1766108226286,500.0,0.00013699,2]
[399085333,1766108226387,500.0,0.00013273,2]
[399085334,1766108226426,6.54327905,0.00014247,2]
[399085335,1766108226451,993.45672095,0.00014247,2]
[399085336,1766108226480,1000.0,0.00013821,2]
[399085338,1766108226506,1500.0,0.00014795,2]
[399085339,1766108226531,1500.0,0.00014368,2]
[399085341,1766108226560,2000.0,0.00015342,2]
[399085343,1766108226586,2000.0,0.00014916,2]
[399085345,1766108226611,1006.55327905,0.00016438,2]
[399085346,1766108226632,1501.15275804,0.00016438,2]
[399085348,1766108226658,800.0,0.00015068,2]
[399085350,1766108226686,1346.2828821,0.00015464,2]
[399085352,1766108226712,2500.0,0.0001589,2]
[399085354,1766108226738,1600.0,0.00016164,2]
[399085355,1766108226763,2252.57435986,0.0001726,2]
[399085357,1766108226784,148.57818304,0.0001726,2]
[399085371,1766108227485,300.0,0.00013673,2]
[399085372,1766108227531,600.0,0.00014221,2]
[399085373,1766108227583,547.11335574,0.00014768,2]
[399085394,1766108230518,-500.0,0.00013699,2]
[399085395,1766108230546,-500.0,0.00013699,2]
[399085400,1766108230665,-1000.0,0.00014247,2]
[399085402,1766108230692,-1000.0,0.00014247,2]
[399085404,1766108230718,-1501.31293472,0.00014795,2]
[399085410,1766108230862,-1500.0,0.00014795,2]
[399085412,1766108230904,500.0,0.00013699,2]
[399085415,1766108230969,1000.0,0.00014247,2]
[399085416,1766108230999,1501.283,0.00014795,2]
[399085419,1766108231352,209.03417449,0.00013273,2]
[399085448,1766108233368,500.0,0.00013699,2]
[399085450,1766108233408,1000.0,0.00014247,2]
[399085453,1766108233465,1500.0,0.00014795,2]
[399085457,1766108235220,500.0,0.00013699,2]
[399085458,1766108235270,289.69282551,0.00014247,2]
[399085459,1766108235291,710.30717449,0.00014247,2]
[399085460,1766108235325,1500.0,0.00014795,2]
[399085461,1766108237014,500.0,0.00013699,2]
[399085462,1766108237062,1000.0,0.00014247,2]
[399085463,1766108237116,1500.0,0.00014795,2]
[399085477,1766108238479,500.0,0.00013273,2]
[399085480,1766108238543,469.93454535,0.00013821,2]
[399085483,1766108238647,500.0,0.00013699,2]
[399085485,1766108238692,1001.73183147,0.00014247,2]
[399085490,1766108239799,500.0,0.00013699,2]
[399085491,1766108239853,1000.0,0.00014247,2]
[399085492,1766108239910,818.03644869,0.00014795,2]
[399085493,1766108239932,681.96355131,0.00014795,2]
[399085507,1766108241199,171.25573004,0.00013273,2]
[399085508,1766108241469,500.0,0.00013699,2]
[399085509,1766108241515,1000.0,0.00014247,2]
[399085510,1766108241569,1500.0,0.00014795,2]
[399085511,1766108241756,500.0,0.00013699,2]
[399085512,1766108241811,1000.0,0.00014247,2]
[399085513,1766108241868,1002.83409231,0.00014795,2]
[399085514,1766108244177,500.0,0.00013699,2]
[399085515,1766108244220,1000.0,0.00014247,2]
[399085516,1766108244278,1500.0,0.00014795,2]
[399085517,1766108244314,500.0,0.00013699,2]
[399085518,1766108244471,143.95662634,0.00014247,2]
[399085519,1766108244493,856.04337366,0.00014247,2]
[399085520,1766108244529,1500.0,0.00014795,2]
[399085521,1766108244952,500.0,0.00013273,2]
[399085522,1766108244999,1505.28393606,0.00014368,2]
[399085523,1766108245028,501.18226219,0.00013699,2]
[399085524,1766108245079,500.0,0.00013273,2]
[399085525,1766108245106,1000.0,0.00013821,2]
[399085526,1766108245133,1000.0,0.00013821,2]
[399085527,1766108245186,1500.0,0.00014368,2]
[399085528,1766108245240,862.33245647,0.00014916,2]
[399085529,1766108245267,275.16797162,0.00013273,2]
[399085530,1766108245290,226.14390826,0.00013273,2]
[399085531,1766108245794,500.0,0.00013699,2]
[399085532,1766108245868,1000.0,0.00014247,2]
[399085533,1766108245899,500.0,0.00013699,2]
[399085534,1766108245924,1500.0,0.00014795,2]
[399085535,1766108245950,1000.0,0.00014247,2]
[399085536,1766108245986,1500.0,0.00014795,2]
[399085537,1766108246253,500.0,0.00013699,2]
[399085538,1766108246297,1000.0,0.00014247,2]
[399085539,1766108246357,1469.95575667,0.00014795,2]
[399085540,1766108246417,500.0,0.00013273,2]
[399085541,1766108246460,303.91033507,0.00013821,2]
[399085542,1766108246482,696.08966493,0.00013821,2]
[399085543,1766108246513,500.0,0.00013273,2]
[399085544,1766108246539,1500.0,0.00014368,2]
[399085545,1766108246564,500.0,0.00013273,2]
[399085546,1766108246595,1000.0,0.00013821,2]
[399085547,1766108246625,2002.00577196,0.00014916,2]
[399085548,1766108246657,1000.0,0.00013821,2]
[399085549,1766108246687,1500.0,0.00014368,2]
[399085550,1766108246712,1301.91456311,0.00014368,2]
[399085551,1766108246734,198.08543689,0.00014368,2]
[399085552,1766108246850,2000.0,0.00014916,2]
[399085553,1766108246880,2000.0,0.00014916,2]
[399085554,1766108248031,500.0,0.00013273,2]
[399085555,1766108248078,1000.0,0.00013821,2]
[399085556,1766108248130,915.03838415,0.00014368,2]
[399085557,1766108280319,243.91,7.492e-05,14]
[399085558,1766108344972,372.83,0.00010228,2]
[399085559,1766108345401,745.66,0.00011157,2]
[399085560,1766108345839,1118.49,0.00012087,2]
[399085562,1766108423575,344.36,0.00010494,2]
[399085563,1766108424031,688.72,0.00011448,2]
[399085564,1766108424504,1033.08,0.00012402,2]
[399085565,1766108429096,5000.0,0.00013,2]
[399085566,1766108445185,-605.0,0.00013017,2]
[399085567,1766108445208,-300.0,0.00013272,2]
[399085568,1766108445233,-300.0,0.00013272,2]
[399085569,1766108445253,-300.0,0.00013272,2]
[399085570,1766108445275,-495.0,0.00013273,2]
[399085571,1766108459951,5000.0,0.00013,2]
[399085572,1766108478688,1000.0,0.000152,120]
[399085573,1766108482597,5000.0,0.00013,2]
[399085574,1766108490386,1500.0,0.000152,120]
[399085575,1766108504841,318.06,9.499e-05,2]
[399085576,1766108505227,636.13,0.00010362,2]
[399085577,1766108505350,2609.22596046,0.00013,2]
[399085578,1766108505649,954.19,0.00011226,2]
[399085579,1766108506056,1272.25,0.00012089,2]
[399085580,1766108527740,450.4,0.000152,120]
[399085581,1766108533993,-1590.31,0.00012953,2]
[399085582,1766108572603,-2390.77403954,0.00013,2]
[399085583,1766108572628,-5000.0,0.0001314,2]
[399085584,1766108572655,-300.0,0.00013272,2]
[399085585,1766108572681,-5.0,0.00013273,2]
[399085586,1766108572706,-281.3415805,0.00013273,2]
[399085587,1766108572728,-306.29271402,0.00013273,2]
[399085588,1766108572752,-500.0,0.00013273,2]
[399085589,1766108572775,-500.0,0.00013273,2]
[399085590,1766108572799,-500.0,0.00013273,2]
[399085591,1766108572822,-500.0,0.00013273,2]
[399085592,1766108572846,-500.0,0.00013273,2]
[399085593,1766108572869,-500.0,0.00013273,2]
[399085594,1766108572892,-260.8668493,0.00013273,2]
[399085595,1766108572915,-500.0,0.00013273,2]
[399085596,1766108572939,-500.0,0.00013273,2]
[399085597,1766108572963,-300.0,0.00013673,2]
[399085598,1766108572987,-184.98117121,0.00013699,2]
[399085599,1766108573012,-500.45932923,0.00013699,2]
[399085600,1766108573040,-508.64770457,0.00013699,2]
[399085601,1766108573067,-500.0,0.00013699,2]
[399085602,1766108573091,-500.0,0.00013699,2]
[399085603,1766108573115,-517.05178712,0.00013699,2]
[399085604,1766108573154,-500.0,0.00013699,2]
[399085605,1766108573187,-500.0,0.00013699,2]
[399085606,1766108573215,-500.0,0.00013699,2]
[399085607,1766108573243,-500.0,0.00013699,2]
[399085608,1766108573269,-500.0,0.00013699,2]
[399085609,1766108573295,-500.0,0.00013699,2]
[399085610,1766108573323,-500.0,0.00013699,2]
[399085611,1766108573351,-499.48115108,0.00013699,2]
[399085612,1766108573375,-500.0,0.00013699,2]
[399085613,1766108573408,-500.0,0.00013699,2]
[399085614,1766108573444,-628.48445787,0.00013699,2]
[399085615,1766108573474,-500.0,0.00013699,2]
[399085616,1766108573502,-500.0,0.00013699,2]
[399085617,1766108573529,-500.0,0.00013699,2]
[399085618,1766108573558,-438.81476318,0.00013699,2]
[399085619,1766108573580,-500.0,0.00013699,2]
[399085620,1766108573607,-500.0,0.00013699,2]
[399085621,1766108573634,-500.0,0.00013699,2]
[399085622,1766108573662,-1908.38,0.00013817,2]
[399085623,1766108573686,-609.31988681,0.0001382,2]
[399085624,1766108573710,-468.46050848,0.0001382,2]
[399085625,1766108573733,-1000.0,0.00013821,2]
[399085626,1766108573757,-1000.0,0.00013821,2]
[399085627,1766108573781,-1000.0,0.00013821,2]
[399085628,1766108573805,-1000.0,0.00013821,2]
[399085629,1766108573829,-1000.0,0.00013821,2]
[399085630,1766108573853,-503.48134242,0.00013821,2]
[399085631,1766108573875,-1000.0,0.00013821,2]
[399085632,1766108573898,-1000.0,0.00013821,2]
[399085633,1766108573922,-1000.0,0.00013821,2]
[399085634,1766108589399,300.0,0.00013673,2]
[399085635,1766108589783,500.0,0.00013699,2]
[399085636,1766108592538,500.0,0.00013699,2]
[399085637,1766108593800,5000.0,0.00014,2]
[399085638,1766108595571,500.0,0.00013699,2]
[399085639,1766108596033,500.0,0.00013699,2]
[399085640,1766108598863,288.46324107,0.00013699,2]
[399085641,1766108600396,500.0,0.00013699,2]
[399085642,1766108601291,233.05,8.916e-05,2]
[399085643,1766108601694,466.11,9.727e-05,2]
[399085644,1766108602098,699.16,0.00010537,2]
[399085645,1766108602496,932.21,0.00011348,2]
[399085646,1766108602824,270.41161554,0.00013699,2]
[399085647,1766108602872,1165.27,0.00012158,2]
[399085648,1766108602919,500.0,0.00013699,2]
[399085649,1766108602948,500.0,0.00013273,2]
[399085650,1766108602988,500.0,0.00013273,2]
[399085651,1766108603017,500.0,0.00013699,2]
[399085652,1766108603045,1000.0,0.00013821,2]
[399085653,1766108603078,500.0,0.00013273,2]
[399085654,1766108603105,1000.0,0.00013821,2]
[399085655,1766108603266,1000.0,0.00013821,2]
[399085656,1766108603304,1398.32,0.00012969,2]
[399085657,1766108603698,1631.37,0.00013779,2]
[399085659,1766108617421,5000.0,0.00014,2]
[399085686,1766108640593,5000.0,0.00014,2]
[399085687,1766108649556,500.0,0.00013699,2]
[399085688,1766108650394,500.0,0.00013699,2]
[399085689,1766108650725,500.0,0.00013699,2]
[399085690,1766108652663,1000.0,0.00013821,2]
[399085691,1766108652769,500.0,0.00013273,2]
[399085692,1766108653180,500.0,0.00013699,2]
[399085693,1766108653275,500.0,0.00013699,2]
[399085694,1766108653437,500.0,0.00013699,2]
[399085695,1766108653869,500.0,0.00013273,2]
[399085696,1766108653928,1000.0,0.00013821,2]
[399085697,1766108664236,5000.0,0.00014,2]
[399085698,1766108679058,150.0,8.984e-05,2]
[399085699,1766108679511,300.0,9.801e-05,2]
[399085700,1766108679896,450.0,0.00010617,2]
[399085701,1766108680283,600.01,0.00011434,2]
[399085702,1766108681205,750.01,0.00012251,2]
[399085703,1766108681618,900.01,0.00013068,2]
[399085704,1766108682030,1050.01,0.00013884,2]
[399085705,1766108687622,5000.0,0.00014,2]
[399085706,1766108704372,543.20326849,0.00013821,2]
[399085707,1766108704422,500.0,0.00013273,2]
[399085708,1766108710988,5000.0,0.00014,2]
[399085709,1766108711070,1000.0,0.00013821,2]
[399085710,1766108711113,500.0,0.00013273,2]
[399085711,1766108716856,298.00531735,0.00013699,2]
[399085712,1766108718708,370.50769362,0.00013699,2]
[399085713,1766108721104,500.0,0.00013699,2]
[399085714,1766108722913,500.0,0.00013699,2]
[399085715,1766108726883,500.0,0.00013699,2]
[399085716,1766108728098,503.90947771,0.00013273,2]
[399085717,1766108728648,399.31181553,0.00013273,2]
[399085718,1766108728710,500.0,0.00013699,2]
[399085719,1766108728971,500.0,0.00013699,2]
[399085720,1766108729527,1000.0,0.00013821,2]
[399085721,1766108729773,500.0,0.00013273,2]
[399085722,1766108734584,188.82028536,0.00014,2]
[399085723,1766108745139,-1262.47028665,0.00014,2]
[399085724,1766108756757,150.0,9.13e-05,2]
[399085725,1766108757160,193.09,9.96e-05,2]
[399085726,1766108757550,289.64,0.0001079,2]
[399085727,1766108757976,386.19,0.0001162,2]
[399085728,1766108758381,482.73,0.0001245,2]
[399085729,1766108807245,-5000.0,0.00013147,2]
[399085730,1766108807490,-500.0,0.00013273,2]
[399085731,1766108807518,-500.0,0.00013273,2]
[399085732,1766108807545,-500.0,0.00013273,2]
[399085733,1766108807577,-579.28,0.0001328,2]
[399085734,1766108807605,-170.218247,0.00013699,2]
[399085735,1766108807632,-500.0,0.00013699,2]
[399085736,1766108807659,-500.0,0.00013699,2]
[399085737,1766108807687,-502.29219885,0.00013699,2]
[399085738,1766108807715,-500.0,0.00013699,2]
[399085739,1766108807744,-500.0,0.00013699,2]
[399085740,1766108807913,-500.0,0.00013699,2]
[399085741,1766108807940,-500.0,0.00013699,2]
[399085742,1766108807968,-500.0,0.00013699,2]
[399085743,1766108807996,-196.65113633,0.00013821,2]
[399085744,1766108808024,-1000.0,0.00013821,2]
[399085745,1766108808052,-1000.0,0.00013821,2]
[399085746,1766108808240,-3548.70942799,0.00014,2]
[399085747,1766108808273,-675.82,0.0001411,2]
[399085748,1766108808302,-150.0,0.00014197,2]
[399085749,1766108808331,-300.0,0.00014245,2]
[399085750,1766108808360,-300.0,0.00014246,2]
[399085751,1766108808419,-1200.0,0.00014246,2]
[399085752,1766108808447,-1000.0,0.00014247,2]
[399085753,1766108808475,-1000.0,0.00014247,2]
[399085754,1766108808506,-1004.79194362,0.00014247,2]
[399085755,1766108808534,-590.42611276,0.00014247,2]
[399085756,1766108808734,-409.57388724,0.00014247,2]
[399085757,1766108808765,-435.87885961,0.00014247,2]
[399085758,1766108808793,-1000.0,0.00014247,2]
[399085759,1766108808820,-1000.0,0.00014247,2]
[399085760,1766108808847,-1000.0,0.00014247,2]
[399085761,1766108808874,-500.0,0.00014247,2]
[399085762,1766108808901,-309.1045063,0.00014247,2]
[399085763,1766108809045,-690.8954937,0.00014247,2]
[399085764,1766108809075,-662.59107494,0.00014247,2]
[399085765,1766108809103,-1000.0,0.00014247,2]
[399085766,1766108809132,-1000.0,0.00014247,2]
[399085767,1766108809161,-1000.0,0.00014247,2]
[399085768,1766108809191,-520.19424366,0.00014368,2]
[399085769,1766108809241,-500.0,0.00014368,2]
[399085770,1766108809272,-532.6090003,0.00014368,2]
[399085771,1766108809303,-1500.0,0.00014368,2]
[399085772,1766108809332,-1500.0,0.00014368,2]
[399085773,1766108809360,-434.7919994,0.00014368,2]
[399085774,1766108813104,-1065.2080006,0.00014368,2]
[399085775,1766108813138,-284.02819036,0.00014368,2]
[399085776,1766108813169,-1500.0,0.00014368,2]
[399085777,1766108813199,-438.88102504,0.00014695,2]
[399085778,1766108813338,-3655.63168676,0.00014768,2]
[399085779,1766108813404,-2688.74662648,0.00014768,2]
[399085780,1766108813433,-1508.33144653,0.00014795,2]
[399085781,1766108813463,-105.85385398,0.00014795,2]
[399085782,1766108813689,-1394.14614602,0.00014795,2]
[399085783,1766108813718,-1500.0,0.00014795,2]
[399085784,1766108813748,-1500.0,0.00014795,2]
[399085785,1766108830081,-500.0,0.00013273,2]
[399085786,1766108830191,-5000.0,0.00013562,2]
[399085787,1766108830210,-607.18879098,0.00013699,2]
[399085788,1766108830230,-209.12335407,0.00013699,2]
[399085789,1766108830250,-1000.0,0.00013821,2]
[399085790,1766108830270,-1009.22173865,0.00014368,2]
[399085791,1766108830289,-5000.0,0.00014647,2]
[399085792,1766108830309,-300.0,0.00014794,2]
[399085793,1766108830329,-1500.0,0.00014795,2]
[399085794,1766108830348,-798.31140917,0.00014795,2]
[399085795,1766108830368,-1500.0,0.00014795,2]
[399085796,1766108830390,-500.70437393,0.00014795,2]
[399085797,1766108830409,-1001.58451146,0.00014795,2]
[399085798,1766108830429,-501.38998605,0.00014795,2]
[399085799,1766108830449,-174.474,0.00014795,2]
[399085800,1766108830471,-500.0,0.00014916,2]
[399085801,1766108830492,-2000.0,0.00014916,2]
[399085802,1766108830512,-2000.0,0.00014916,2]
[399085803,1766108830532,-2000.0,0.00014916,2]
[399085804,1766108830551,-2000.0,0.00014916,2]
[399085805,1766108830571,-182.20014658,0.00015342,2]
[399085806,1766108830589,-1093.24130498,0.00015342,2]
[399085807,1766108830609,-2000.0,0.00015342,2]
[399085808,1766108830631,-2000.0,0.00015342,2]
[399085809,1766108830651,-2000.0,0.00015342,2]
[399085810,1766108830670,-2000.0,0.00015342,2]
[399085811,1766108830689,-2500.0,0.00015464,2]
[399085812,1766108830709,-1590.62011003,0.00015464,2]
[399085813,1766108830728,-2500.0,0.00015464,2]
[399085814,1766108830747,-2500.0,0.00015464,2]
[399085815,1766108830769,-600.0,0.00015648,2]
[399085816,1766108830788,-1163.0,0.0001567,2]
[399085817,1766108830807,-257.04550563,0.0001589,2]
[399085818,1766108830825,-2500.0,0.0001589,2]
[399085819,1766108830849,-2500.0,0.0001589,2]
[399085820,1766108830870,-2500.0,0.0001589,2]
[399085821,1766108830888,-816.57593666,0.00016012,2]
[399085822,1766108830908,-1034.53070592,0.00016012,2]
[399085823,1766108830927,-2570.96589634,0.00016012,2]
[399085824,1766108830947,-420.0,0.00016194,2]
[399085825,1766108830968,-177.0,0.00016197,2]
[399085826,1766108830988,-500.0,0.00016437,2]
[399085827,1766108831010,-500.0,0.00016437,2]
[399085828,1766108831032,-193.94461891,0.00016437,2]
[399085829,1766108831053,-643.89747012,0.00016437,2]
[399085830,1766108831076,-506.64983539,0.00016438,2]
[399085831,1766108831096,-2487.57938884,0.00016438,2]
[399085832,1766108831116,-513.01264097,0.00016438,2]
[399085833,1766108831139,-965.46,0.000166,2]